Cogmind - Beta 10.2 @@@ ROGUE MODE // 2021.01.09 @ 15:01:30 Player: WayneKnight Result: Self-destructed Performance ------------- Evolutions (0) 0 Regions Visited (4) 800 Robots Destroyed (26) 130 Value Destroyed (525) 525 Prototype IDs (4) 80 Alien Tech Used (0) 0 Bonus (19) 19 TOTAL SCORE: 1554 Bonus ------- Follower Combat Kills 49 Friendly Fire -30 Cogmind --------- Core Integrity 63/250 Matter 291/300 Energy 250/250 System Corruption 7% Temperature Cool (0) Movement Treading (180) Ox1 Location -9/Mines Parts ------- > --- POWER (1) -------- Ion Engine > --- PROPULSION (2) --- Light Treads Light Treads > --- UTILITY (2) ------ Large Storage Unit Large Storage Unit > --- WEAPON (2) ------- Light Assault Rifle Light Cannon > --- INVENTORY (16) --- Ion Engine Light Ion Engine Light Treads Light Treads Aluminum Leg Medium Storage Unit Large Storage Unit Large Matter Pod (150) High-capacity Matter Pod (200) Improved Sensor Array Experimental Sensor Array Utility Shielding Small Laser Small Laser Light Assault Rifle Makeshift Spear Peak State ------------ > --- POWER ------------ Ion Engine > --- PROPULSION ------- Light Treads Light Treads > --- UTILITY ---------- Large Storage Unit Large Storage Unit > --- WEAPON ----------- Light Cannon Maul > --- INVENTORY -------- Ion Engine Light Ion Engine Light Treads Light Treads Aluminum Leg Medium Storage Unit Large Storage Unit Large Matter Pod High-capacity Matter Pod Improved Sensor Array Utility Shielding Small Laser Small Laser Light Assault Rifle Light Assault Rifle Makeshift Spear [Rating: 10] Favorites ----------- Power Ion Engine Engine Ion Engine Propulsion Light Treads Treads Light Treads Leg Aluminum Leg Utility Large Storage Unit Storage Large Storage Unit Weapon Light Assault Rifle Energy Gun Medium Laser Ballistic Gun Light Assault Rifle Ballistic Cannon Light Cannon Impact Weapon Maul Build | -11 -10 -10 -10 -9 ------- Run | Scr Mat Min Exi Min Slots Evolved . | . . . . . Power . | . . . . . Propulsion . | . . . . . Utility . | . . . . . Weapon . | . . . . . Parts Attached 15 | . 8 1 . 6 Power 1 | . 1 . . . Engine 1 | . 1 . . . Core . | . . . . . Reactor . | . . . . . Propulsion 3 | . 3 . . . Treads 3 | . 3 . . . Leg . | . . . . . Wheel . | . . . . . Hover . | . . . . . Flight . | . . . . . Utility 2 | . 2 . . . Device . | . . . . . Storage 2 | . 2 . . . Processor . | . . . . . Hackware . | . . . . . Protection . | . . . . . Artifact . | . . . . . Weapon 9 | . 2 1 . 6 Energy Gun 2 | . 1 . . 1 Energy Cannon . | . . . . . Ballistic Gun 5 | . 1 1 . 3 Ballistic Cannon 1 | . . . . 1 Launcher . | . . . . . Special Weapon . | . . . . . Impact Weapon 1 | . . . . 1 Slashing Weapon . | . . . . . Piercing Weapon . | . . . . . Special Melee Weapon . | . . . . . Unidentified Prototypes . | . . . . . Parts Lost 4 | . 1 . . 3 Power . | . . . . . Propulsion . | . . . . . Utility . | . . . . . Weapon 4 | . 1 . . 3 Highest Loss Streak 2 | . 1 . . 2 Average Slot Usage (%) 99 | . 98 100 100 100 Engine 14 | . 14 14 14 14 Treads 27 | . 27 28 28 28 Storage 27 | . 27 28 28 28 Energy Gun 3 | . 5 . . 5 Ballistic Gun 23 | . 22 28 28 16 Ballistic Cannon 1 | . . . . 5 Naked Turns . | . . . . . Heaviest Build 41 | 10 41 40 40 41 Greatest Support 40 | 20 40 40 40 40 Greatest Overweight (x) 1 | . 1 . . 1 Average Overweight (x) . | . . . . . Largest Inventory Capacity 16 | 6 16 16 16 16 Average Capacity 15 | 6 15 16 16 16 Most Carried 16 | 6 16 16 16 16 Average Carried 14 | 6 12 16 16 15 Final Capacity 16 | 6 16 16 16 16 Final Carried 16 | 6 16 16 16 16 Class Distribution -------------------- 100% | Mutant Dominant Class ---------------- Mutant | -10/Materials Mutant | -10/Mines Mutant | -10/Exiles Mutant | -9/Mines Resources | -11 -10 -10 -10 -9 ----------- Run | Scr Mat Min Exi Min Matter Collected 1017 | 200 535 133 . 149 Remotely . | . . . . . Salvage Created 883 | 70 635 89 . 89 Parts 53 | 1 41 11 . . Haulers Intercepted 2 | . 2 . . . Recyclers Shooed . | . . . . . Parts Field Recycled . | . . . . . Retrieved Matter . | . . . . . Parts Self-Destructed . | . . . . . Prevented . | . . . . . Kills | -11 -10 -10 -10 -9 ------- Run | Scr Mat Min Exi Min Combat Hostiles Destroyed 25 | . 14 5 . 6 Guns 24 | . 14 5 . 5 Cannons 1 | . . . . 1 Classes Destroyed 8 | 1 5 . . 2 Worker 1 | . 1 . . . Hauler 2 | . 2 . . . Recycler 1 | 1 . . . . Watcher 2 | . 2 . . . Swarmer 10 | . 6 4 . . Grunt 9 | . 8 1 . . Demolisher 1 | . . . . 1 Assembled 5 | . . . . 5 Best Kill Streak 4 | 1 4 2 . 2 Combat Bots Only 4 | . 4 2 . 2 Max Kills in Single Turn 1 | 1 1 1 . 1 Gunslinging . | . . . . . Exploded . | . . . . . Melee . | . . . . . Uniques/NPCs Destroyed . | . . . . . Combat | -11 -10 -10 -10 -9 -------- Run | Scr Mat Min Exi Min Damage Taken 1115 | . 504 64 . 547 Core 187 | . 81 13 . 93 Absorbed by Shields . | . . . . . Core Remaining (%) 100 | 100 . . . . Volleys Fired 97 | 4 51 9 . 33 Largest 2 | 2 2 2 . 2 Hottest 70 | 40 70 40 . 70 Shots Fired 197 | 8 102 18 . 69 Gun 193 | 8 102 18 . 65 Cannon 4 | . . . . 4 Launcher . | . . . . . Special . | . . . . . Kinetic 165 | 8 89 18 . 50 Thermal 32 | . 13 . . 19 Explosive . | . . . . . Electromagnetic . | . . . . . Robot Hit Streak 18 | 2 18 3 . 8 Robot Miss Streak 6 | 1 2 2 . 6 Penetration Max . | . . . . . Secondary Targets 5 | . 5 . . . Max Gunslinging Chain 1 | . 1 . . . Shots Hit Robots 119 | 4 73 8 . 34 Core Hits 55 | 2 32 5 . 16 Critical Hits 2 | . 2 . . . Critical Kills 1 | . 1 . . . Critical Parts Destroyed 1 | . 1 . . . Melee Attacks . | . . . . . Impact . | . . . . . Slashing . | . . . . . Piercing . | . . . . . Sneak Attacks . | . . . . . Combat Hostiles . | . . . . . Follow-up Attacks . | . . . . . Damage Inflicted 1366 | 45 802 112 . 407 Guns 1293 | 45 789 111 . 348 Cannons 57 | . . . . 57 Explosions . | . . . . . Melee . | . . . . . Ramming 16 | . 13 1 . 2 Kinetic 1086 | 45 649 111 . 281 Thermal 264 | . 140 . . 124 Explosive . | . . . . . Electromagnetic . | . . . . . Impact . | . . . . . Slashing . | . . . . . Piercing . | . . . . . Highest Corruption 7 | . . . . 7 Average Corruption 6 | . . . . 6 Corruption Purged . | . . . . . Effects 26 | . . . . 26 Message Errors 4 | . . . . 4 Matter Fused 4 | . . . . 4 Heat Flow Errors 1 | . . . . 1 Energy Discharges 5 | . . . . 5 Data Loss (minor) 2 | . . . . 2 Data Loss (major) 4 | . . . . 4 Misfires 3 | . . . . 3 Targeting Errors 3 | . . . . 3 Overload Shots . | . . . . . Overflow Damage 7 | . . . . 7 Projectiles 7 | . . . . 7 Explosions . | . . . . . Melee . | . . . . . Knockbacks 1 | . . . . 1 Impact . | . . . . . Kinetic 1 | . . . . 1 Secondary . | . . . . . Self-Inflicted Damage . | . . . . . Shots . | . . . . . Rammed 5 | . 2 1 . 2 Targets Rammed 5 | . 2 1 . 2 Kicked . | . . . . . Crushed . | . . . . . Highest Temperature 212 | . 111 . . 212 Average Temperature 56 | . 26 . . 79 Received Heat Transfer 306 | . 180 . . 126 Siege Activations . | . . . . . Robots Corrupted . | . . . . . Combat Hostiles . | . . . . . Parts Fried . | . . . . . Impact Corruptions . | . . . . . Robots Melted . | . . . . . Combat Hostiles . | . . . . . Parts Melted . | . . . . . Heat Transferred 777 | . 407 . . 370 Parts Sabotaged . | . . . . . Parts Stolen . | . . . . . Parts Stripped . | . . . . . Power Chain Reactions . | . . . . . Missiles Intercepted . | . . . . . Alert | -11 -10 -10 -10 -9 ------- Run | Scr Mat Min Exi Min Peak Influence 294 | 5 294 119 . 45 Initial 12 | . 3 12 . . Average 64 | 1 112 60 . 6 Maximum Alert Level 1 | . 1 . . . Low Security (%) 88 | 100 71 100 . 100 Level 1 11 | . 28 . . . Level 2 . | . . . . . Level 3 . | . . . . . Level 4 . | . . . . . Level 5 . | . . . . . High Security . | . . . . . Max Security . | . . . . . Squads Dispatched 5 | . 4 . . 1 Investigation 3 | . 3 . . . Extermination . | . . . . . Reinforcement 2 | . 1 . . 1 Assault . | . . . . . Garrison . | . . . . . Intercept . | . . . . . Construction Impeded 1 | . . . . 1 Haulers Reinforced . | . . . . . Stealth | -11 -10 -10 -10 -9 --------- Run | Scr Mat Min Exi Min Distress Signals 3 | . 1 . . 2 Communications Jammed . | . . . . . Distress Signals . | . . . . . Times Spotted 45 | . 24 9 . 12 Peak Tracking Total 4 | . 4 3 . 3 Tactical Retreats 4 | . 2 1 . 1 Traps | -11 -10 -10 -10 -9 ------- Run | Scr Mat Min Exi Min Traps Triggered 2 | . 2 . . . Indirectly . | . . . . . Trap Hack Attempts . | . . . . . Triggered . | . . . . . Disarmed . | . . . . . Reprogrammed . | . . . . . Reused . | . . . . . Traps Extracted . | . . . . . Installed . | . . . . . Triggered . | . . . . . Machines | -11 -10 -10 -10 -9 ---------- Run | Scr Mat Min Exi Min Machines Disabled 1 | . . 1 . . Max in Single Turn . | . . . . . Machines Sabotaged . | . . . . . Garrisons Compromised . | . . . . . Overloaded Fab Kills . | . . . . . Fab Network Shutdowns . | . . . . . Hacking | -11 -10 -10 -10 -9 --------- Run | Scr Mat Min Exi Min Machines Accessed 10 | . 9 . 1 . Terminals 7 | . 7 . . . Fabricators . | . . . . . Repair Stations 1 | . 1 . . . Recycling Units 1 | . 1 . . . Scanalyzers . | . . . . . Garrison Access . | . . . . . Total Hacks 30 | . 29 . 1 . Successful 20 | . 19 . 1 . Failed 9 | . 9 . . . Catastrophic . | . . . . . Database Lockouts 1 | . 1 . . . Manual 19 | . 19 . . . Terminals 24 | . 24 . . . Fabricators . | . . . . . Repair Stations 2 | . 2 . . . Recycling Units 3 | . 3 . . . Scanalyzers . | . . . . . Garrison Access . | . . . . . Terminal Hacks 10 | . 9 . 1 . Record 2 | . 1 . 1 . Part Schematic 1 | . 1 . . . Robot Analysis 2 | . 2 . . . Prototype ID Bank 2 | . 2 . . . Emergency Access Points 1 | . 1 . . . Unreport Threat 1 | . 1 . . . Locate Traps 1 | . 1 . . . Fabricator Hacks . | . . . . . Repair Station Hacks 2 | . 2 . . . Scan Component 1 | . 1 . . . Repair 1 | . 1 . . . Recycling Unit Hacks 1 | . 1 . . . Report Inventory 1 | . 1 . . . Scanalyzer . | . . . . . Garrison Access Hacks . | . . . . . Unauthorized Hacks 7 | . 7 . . . Terminals 5 | . 5 . . . Track 2 | . 2 . . . Botnet 3 | . 3 . . . Fabricators . | . . . . . Repair Stations . | . . . . . Recycling Units 2 | . 2 . . . Recyclers 1 | . 1 . . . Tunnel 1 | . 1 . . . Scanalyzers . | . . . . . Garrison Access . | . . . . . Data Cores Recovered . | . . . . . Used . | . . . . . Hacking Detections 8 | . 8 . . . Full Trace Events . | . . . . . Feedback Events . | . . . . . Feedback Blocked . | . . . . . Robot Schematics Acquired . | . . . . . Robots Built . | . . . . . Matter . | . . . . . Time . | . . . . . Total Robot Build Rating . | . . . . . Part Schematics Acquired 1 | . 1 . . . Parts Built . | . . . . . Matter . | . . . . . Time . | . . . . . Total Part Build Rating . | . . . . . Parts Repaired 1 | . 1 . . . Time 26 | . 26 . . . Parts Recycled . | . . . . . Recycled Matter . | . . . . . Retrieved Matter . | . . . . . Retrieved Components . | . . . . . Parts Scanalyzed . | . . . . . Part Schematics Acquired . | . . . . . Parts Damaged . | . . . . . Bothacking | -11 -10 -10 -10 -9 ------------ Run | Scr Mat Min Exi Min Used RIF Installer . | . . . . . Robots Hacked . | . . . . . Non-combat . | . . . . . Combat . | . . . . . Robot Hacks Applied . | . . . . . Relay Couplers Released . | . . . . . Robots Rewired . | . . . . . Allies Hacked . | . . . . . Hacks Repelled . | . . . . . Allies | -11 -10 -10 -10 -9 -------- Run | Scr Mat Min Exi Min Total Allies 3 | . . 3 . . Largest Group 2 | . . 2 . . Highest-Rated Group 42 | . . 42 . . Highest-Rated Ally 31 | . . 31 . . Total Orders . | . . . . . Ally Attacks 17 | . . 17 . . Total Damage 177 | . . 177 . . Kills 3 | . . 3 . . Allies Corrupted . | . . . . . Allies Melted . | . . . . . Intel | -11 -10 -10 -10 -9 ------- Run | Scr Mat Min Exi Min Robot Analysis Total 2 | . 2 . . . Derelict Logs Recovered 3 | . . 2 . 1 Drone Launches . | . . . . . Drone Recoveries . | . . . . . Exploration | -11 -10 -10 -10 -9 ------------- Run | Scr Mat Min Exi Min Turns Passed 4433 | 12 1482 1017 786 1136 Spaces Moved 2340 | 1 751 599 492 497 Core . | . . . . . Treads 2339 | . 751 599 492 497 Legs 1 | 1 . . . . Wheels . | . . . . . Hover . | . . . . . Flight . | . . . . . Fastest Speed 120 | 120 160 160 160 160 Average Speed 163 | 120 164 160 160 169 Slowest Speed 180 | 120 180 160 160 180 Overloaded Moves . | . . . . . Propulsion Burnouts . | . . . . . Robots Hopped . | . . . . . Cave-ins Triggered . | . . . . . Exploration Rate (%) 75 | 2 97 99 90 89 Regions Visited 4 Branch Regions 3 Pre-discovered Areas 1 | . 1 . . . Known Exits Taken . | . . . . . Unknown Exits Taken 4 | 1 1 1 1 . Scrap Searched 3 | . . 1 . 2 Spaces Dug . | . . . . . Terrain Destroyed . | . . . . . Melee . | . . . . . Projectile . | . . . . . AOE . | . . . . . Terrain Rammed . | . . . . . Walls Destroyed . | . . . . . Machines Disabled . | . . . . . Actions | -11 -10 -10 -10 -9 --------- Run | Scr Mat Min Exi Min Total 2762 | 4 898 642 491 727 Wait 283 | . 68 30 . 185 Move 2336 | . 750 598 491 497 Hop . | . . . . . Pick Up 17 | . 14 1 . 2 Fast Attach 3 | . 2 . . 1 Attach 5 | . 1 . . 4 Detach 1 | . . . . 1 Swap 7 | . 5 1 . 1 Drop 8 | . 5 2 . 1 Fire 97 | 4 51 9 . 33 Melee . | . . . . . Ram . | . . . . . Kick . | . . . . . Crush 5 | . 2 1 . 2 Escape Stasis . | . . . . . Rewire . | . . . . . Trap . | . . . . . Miscellaneous . | . . . . . Route ------- -11/Scrapyard -10/Materials (discovered 4 exits: [*Mat x3] / [*Min]) -10/Mines (discovered 3 exits: [*Mat x2] / *Exi) -10/Exiles (discovered 2 exits: [*Min x2]) -9/Mines (discovered 2 exits: [*Mat x2]) History --------- Turn | Location | Event 13 | -11/Scrapyard | Discovered new exit (range 0) 13 | -11/Scrapyard | Entered Materials 188 | -10/Materials | Discovered new exit (range 10) 302 | -10/Materials | Build established: Mutant 424 | -10/Materials | Discovered new exit (range 5) 501 | -10/Materials | Discovered new exit (range 15) 919 | -10/Materials | Discovered new exit (range 5) 1271 | -10/Materials | Repaired Lgt. Treads 1293 | -10/Materials | Central database locked down 1495 | -10/Materials | Entered Mines 1542 | -10/Mines | Discovered new exit (range 8) 1569 | -10/Mines | Learned Materials terminal intel 1841 | -10/Mines | Learned Materials emergency access door positions 1863 | -10/Mines | Found a hidden stash of uninstalled traps 1919 | -10/Mines | Deemed a non-threat by the Exiles lab entrance 2039 | -10/Mines | Discovered new exit (range 4) 2187 | -10/Mines | Received a Mining Laser from a helpful Derelict 2504 | -10/Mines | Discovered new exit (range 5) 2512 | -10/Mines | Entered Exiles 2512 | -10/Exiles | Found Exiles lab abandoned 3109 | -10/Exiles | Discovered new exit (range 12) 3277 | -10/Exiles | Discovered new exit (range 15) 3298 | -10/Exiles | Entered Mines 3299 | -9/Mines | Assembled infested the area 3304 | -9/Mines | Assisted by a Guerilla fighting off Assembled 3512 | -9/Mines | Core integrity fell below 50% 3679 | -9/Mines | Discovered new exit (range 12) 4021 | -9/Mines | Discovered new exit (range 15) 4084 | -9/Mines | Found a damaged Exp. Sensor Array with a note attached 4087 | -9/Mines | Found Prototype Device 4434 | -9/Mines | Self-destructed Last Messages --------------- 04173_ Acquired 8 matter. 04175_ K-01 Serf collects debris. 04188_ System corrupted: Energy discharge (-97). 04189_ K-01 Serf collects debris. 04239_ =27TSAFVP1IZ1#I DXP, >F7/ 04256_ K-01 Serf collects debris. 04273_ System corrupted: Matter fused (-5). 04273_ K-01 Serf collects debris. 04279_ Acquired 5 matter. 04283_ Slammed into K-01 Serf. 04292_ System corrupted: Component data lost. 04308_ System corrupted: Energy discharge (-65). 04332_ System corrupted: Matter fused (-6). 04332_ Extracted 6 matter. 04347_ JNZPTP DPLXWR=OPD8NSKMUHH8 04386_ K-01 Serf collects debris. 04401_ System corrupted: Substantial component data lost. 04405_ K-01 Serf collects debris. 04428_ System corrupted: Matter fused (-9). 04428_ K-01 Serf collects debris. Map ----- +----------------------------------------------------+ | #???????###?????????? ??????? | | #?????? #?????????? ??????? | | #??????# #?????????? ??????? | | #??#???# #?????????? ??????? | | ???# ?? #?????????# ???????? | | ???# ?## ##?????### #???????? | | #### ## ####### #???????? | | # ?# #???????? | | #?# ?? ]#???????? | | """ ### #?? #???????? | | """ ## #??# #???????? | | # """ # #?## #???????? | | ?# ### #???????? | | ??# #????????? | | #??# #????????? | | #??## =* #### #????????? | | ##### #####%| ##??## #?#####??? | | ## #!#???#####????# ### ##?? | | !! ! ##????????#### ## #?? | | ### /# #????????# # #?? | | ###### #????????# ## #??? | | =* #????????# ###### ##??? | | =%= #????????# #???## #???? | | !%*####????????# #??## #???? | | =!# ##???###### #??# k #???? | | ####???# #??# @ #???? | | ##### ##??# #### #??# ##???? | | ?## %#### #??# #??## ##????? | | ##!! % !%* #??# #???## #?????? | | ######## #????# #?????? | | ## *%= ##???# #????# #?????? | | ?#= *####????# ####????# #?????? | | ##!=##???????# #??????? #?????? | | #*%##????????# #??????? ##?????? | | %%=#?????????# ##?????? ???????? | | !!*#????????## ##????? ???????? | | %*#????????# #????? ???????? | | ##??????### #????#%???????? | | ###???????# #????# ???????? | | ??????????# !!!! #????? ???????? | | ??????????# ! ! #????? ???????? | | ??????????# !!!! #?????????????? | | ?????????## !!!! #?????????????? | | ######??## #?????????????? | | #?## ###?????????????? | | ### #?# ##???????????????? | | #?# #?# ##????????????????? | | #?# #?# ##?????????????????? | | #?# #?## ##?????????????????? | | ##?# #??## #?????????????????? | +----------------------------------------------------+ Best States ------------- Heat Dissipation 25 Energy Generation 10 Energy Capacity 250 Matter Stores 300 Matter Capacity 300 Sight Range 16 Terrain Scan Density 10 Evasion (%) 40 Recoil Reduction 2 Item Schematics ----------------- Hcp. Storage Unit | -10/Materials | Hacked Robot Schematics ------------------ None Fabricated ------------ Nothing Alien Tech Used ----------------- None Achievements -------------- None Challenges ------------ None Game ------ Seed MasterParticleGun Manual? 0 Play Time 00:20:06 Cumulative 167.0 hours Start 2021.01.09 @ 14:46:06 End 2021.01.09 @ 15:01:30 Sessions 1 Manual Loads 0 Difficulty Rogue Special Mode None Game No. 125 Rogue 125 Adventurer 0 Explorer 0 Win Type - Total 3 Types 3/0/0/0/0/0/0/0/0 Lore% 44 Gallery% 59 Achievement% 44 Wizard Run 0 Options --------- ASCII 1 Keyboard 1 Movement Arrows Keybinds 0 Fullscreen 1 Font 24/Proggy Map View 76x50 Tactical HUD 1 Map Filters NONE Filters NONE Steam 1 RUN: f159aaba-90bc-4dcf-a515-ac0b9b93ffef